bitfinex-derivatives/quotes_SOLF0:USTF0_20260203
["timestamp","ask_amount","ask_price","bid_price","bid_amount"]
[1770082893390,3.78924703,103.74,103.67,3.79474499]
[1770082893582,3.78924703,103.72,103.65,3.79474499]
[1770082894584,8.6862,103.71,103.65,12.48524499]
[1770082896794,12.47644703,103.7,103.63,12.48704499]
[1770082900098,3.78924703,103.68,103.63,12.48704499]
[1770082900289,3.78924703,103.68,103.61,12.48874499]
[1770082901289,8.6896,103.67,103.61,12.48874499]
[1770082901490,3.78924703,103.7,103.63,3.79474499]
[1770082902896,8.6879,103.69,103.63,3.79474499]
[1770082903393,8.6879,103.69,103.63,12.48764499]
[1770082905797,12.47714703,103.69,103.63,12.48764499]
[1770082905997,12.47814703,103.68,103.63,3.79474499]
[1770082906997,3.78924703,103.68,103.63,3.79474499]
[1770082907594,12.47814703,103.68,103.63,3.79474499]
[1770082910294,3.78924703,103.68,103.63,12.48764499]
[1770082910500,3.51056999,103.71,103.63,3.79474499]
[1770082911095,8.6873,103.7,103.64,3.49648682]
[1770082912294,8.6873,103.7,103.65,8.6912]
[1770082913699,8.6873,103.7,103.65,12.18768682]
[1770082913898,3.51056999,103.73,103.66,3.49648682]
[1770082914699,3.51056999,103.73,103.68,12.18508682]
[1770082915803,12.19346999,103.75,103.69,3.49648682]
[1770082917304,12.19346999,103.75,103.7,8.687]
[1770082918911,3.51056999,103.77,103.71,12.18258682]
[1770082919303,3.51056999,103.77,103.71,3.49648682]
[1770082920401,3.51056999,103.77,103.72,12.18118682]
[1770082920599,8.6811,103.78,103.72,12.18118682]
[1770082920806,3.51056999,103.79,103.73,3.49648682]
[1770082921199,3.51056999,103.79,103.71,3.49648682]
[1770082921604,3.51056999,103.79,103.72,3.49648682]
[1770082921905,3.51056999,103.79,103.74,3.49648682]
[1770082923310,3.51056999,103.79,103.74,12.18018682]
[1770082924101,3.51056999,103.78,103.73,8.6845]
[1770082924907,3.51056999,103.78,103.73,12.18098682]
[1770082925208,12.18926999,103.81,103.74,12.18018682]
[1770082925406,3.51056999,103.8,103.74,12.18018682]
[1770082926306,12.18936999,103.8,103.74,12.18018682]
[1770082926504,3.51056999,103.8,103.75,12.17928682]
[1770082927207,3.51056999,103.8,103.72,3.49648682]
[1770082927805,3.51056999,103.78,103.72,3.49648682]
[1770082929402,12.19176999,103.78,103.72,12.18188682]
[1770082930608,3.51056999,103.77,103.72,12.18188682]
[1770082931304,3.51056999,103.79,103.73,12.18088682]
[1770082932308,3.51056999,103.77,103.7,3.49648682]
[1770082932907,12.19346999,103.75,103.7,3.49648682]
[1770082933208,3.51056999,103.75,103.68,3.49648682]
[1770082934306,8.6837,103.74,103.69,8.6878]
[1770082935713,12.19426999,103.74,103.69,8.6878]
[1770082936608,8.6829,103.75,103.7,3.49648682]
[1770082937109,12.19346999,103.75,103.7,3.49648682]
[1770082937907,3.51056999,103.74,103.69,8.6878]
[1770082938103,12.19436999,103.74,103.69,8.6878]
[1770082939318,3.51056999,103.74,103.69,8.6878]
[1770082940314,3.51056999,103.74,103.69,12.42972168]
[1770082941014,3.51056999,103.74,103.7,8.687]
[1770082941513,8.683,103.75,103.7,8.687]
[1770082941710,3.71067826,103.76,103.71,8.6861]
[1770082941913,3.71067826,103.76,103.71,12.42802168]
[1770082944512,14.77257395,103.76,103.71,3.74192168]
[1770082945614,2.37969569,103.75,103.71,3.74192168]
[1770082946116,14.77257395,103.76,103.71,3.74192168]
[1770082947411,14.77337395,103.75,103.71,3.74192168]
[1770082947610,14.77337395,103.75,103.69,12.42972168]
[1770082950017,11.06359569,103.74,103.69,12.42972168]
[1770082950214,14.77427395,103.74,103.69,12.42972168]
[1770082950617,6.09037395,103.74,103.69,12.42972168]
[1770082952323,14.77427395,103.74,103.69,12.42972168]
[1770082952924,14.77427395,103.74,103.69,3.74192168]
[1770082954124,14.77427395,103.74,103.69,12.42962168]
[1770082954820,14.77427395,103.74,103.69,3.74192168]
[1770082956621,14.77427395,103.74,103.69,12.42962168]
[1770082956815,6.09037395,103.74,103.69,12.42962168]
[1770082957114,6.09037395,103.74,103.69,3.74192168]
[1770082957320,6.09037395,103.74,103.69,12.42962168]
[1770082957822,14.77417395,103.74,103.69,12.42962168]
[1770082958223,6.09037395,103.74,103.7,8.687]
[1770082958424,8.683,103.75,103.7,12.42892168]
[1770082958924,14.77257395,103.76,103.7,12.42892168]
[1770082959323,6.09037395,103.76,103.7,12.42892168]
[1770082959524,3.71067826,103.75,103.7,12.42892168]
[1770082959722,3.71067826,103.73,103.68,12.43002168]
[1770082960525,519.7077,103.77,103.7,3.74192168]
[1770082960526,12.39367826,103.75,103.7,3.74192168]
[1770082961122,3.71067826,103.75,103.71,3.74192168]
[1770082962327,3.71067826,103.75,103.71,12.42812168]
[1770082963528,6.09037395,103.74,103.69,12.42922168]
[1770082965626,6.09037395,103.74,103.7,8.687]
[1770082968131,6.09037395,103.74,103.69,12.42962168]
[1770082968532,6.09037395,103.74,103.7,3.74192168]
[1770082968732,2.37969569,103.74,103.7,12.42882168]
[1770082972429,2.37969569,103.74,103.71,3.63138591]
[1770082972633,522.3176,103.79,103.72,3.63138591]
[1770082972634,2.37969569,103.77,103.72,3.63138591]
[1770082973939,5.86457256,103.77,103.72,3.63138591]
[1770082974341,14.54597256,103.77,103.72,12.31658591]
[1770082976733,14.54597256,103.77,103.72,3.63138591]
[1770082977232,2.37969569,103.76,103.72,3.63138591]
[1770082977940,3.48487687,103.75,103.7,3.63138591]
[1770082978243,5.86457256,103.74,103.7,3.63138591]
[1770082979538,8.6835,103.75,103.7,12.31828591]
[1770082979742,8.6835,103.75,103.71,3.63138591]
[1770082980246,5.86457256,103.76,103.72,3.63138591]
[1770082981749,2.37969569,103.76,103.72,12.31668591]
[1770082985551,3.48487687,103.75,103.69,3.63138591]
[1770082985852,2.37969569,103.76,103.7,3.63138591]
[1770082986151,2.37969569,103.76,103.72,8.6854]
[1770082986351,2.37969569,103.76,103.71,3.63138591]
[1770082986547,5.86457256,103.76,103.71,3.63138591]
[1770082986753,12.16787687,103.75,103.71,3.63138591]
[1770082987646,135.0299,103.78,103.69,12.31878591]
[1770082987647,14.54857256,103.74,103.69,12.31878591]
[1770082997461,14.54857256,103.74,103.7,3.63138591]
[1770082997659,5.86457256,103.76,103.71,3.63138591]
[1770082998560,2.37969569,103.76,103.72,3.63138591]
[1770082998759,8.6813,103.77,103.72,3.63138591]
[1770082998960,12.16617687,103.77,103.72,3.63138591]
[1770083000363,12.16617687,103.77,103.72,12.31668591]
[1770083000763,14.54536294,103.77,103.72,12.31668591]
[1770083001466,14.69391575,103.79,103.74,3.76235742]
[1770083001862,6.01371575,103.78,103.72,3.76235742]
[1770083002068,3.63452968,103.77,103.72,3.76235742]
[1770083002269,3.63452968,103.77,103.72,12.44745742]
[1770083003269,3.63452968,103.75,103.7,12.44885742]
[1770083003470,6.01371575,103.75,103.7,12.44885742]
[1770083004667,3.63452968,103.75,103.7,12.44885742]
[1770083004971,3.63452968,103.75,103.71,3.76235742]
[1770083010479,14.69681575,103.75,103.69,12.45015742]
[1770083010681,14.69681575,103.75,103.7,3.76235742]
[1770083014383,12.31762968,103.75,103.7,3.76235742]
[1770083018987,14.69681575,103.75,103.7,3.76235742]
[1770083023288,14.69681575,103.75,103.7,12.44935742]
[1770083025990,3.63452968,103.73,103.69,8.6877]
[1770083026190,3.63452968,103.73,103.69,12.45005742]
[1770083031787,3.79229836,103.75,103.7,3.64062633]
[1770083032189,3.79229836,103.76,103.7,3.64062633]
[1770083032689,12.47499836,103.76,103.7,12.32762633]
[1770083032886,3.79229836,103.75,103.7,12.32762633]
[1770083033286,3.79229836,103.74,103.7,12.32762633]
[1770083035791,12.47449836,103.76,103.71,12.32682633]
[1770083040896,3.79229836,103.78,103.73,3.64062633]
[1770083041988,3.79229836,103.8,103.75,3.64062633]
[1770083042192,3.79229836,103.84,103.79,3.64062633]
[1770083042494,6.17148443,103.86,103.8,3.64062633]
[1770083042997,3.79229836,103.86,103.81,3.64062633]
[1770083043194,6.17148443,103.86,103.81,3.64062633]
[1770083043391,12.46769836,103.84,103.79,3.64062633]
[1770083044092,3.79229836,103.83,103.78,8.6804]
[1770083045188,3.79229836,103.81,103.76,8.6813]
[1770083045390,6.17148443,103.81,103.75,3.64062633]
[1770083046393,6.17148443,103.81,103.75,12.32342633]
[1770083046595,6.17148443,103.79,103.73,175.24062633]
[1770083046799,14.85108443,103.79,103.73,183.92482633]
[1770083051198,6.17148443,103.79,103.74,3.64062633]
[1770083051399,3.79229836,103.79,103.74,3.64062633]
[1770083051700,11.05798607,103.8,103.75,3.64062633]
[1770083051701,8.6788,103.8,103.75,3.64062633]
[1770083051899,14.84938443,103.81,103.75,3.64062633]
[1770083052301,12.47019836,103.81,103.76,3.64062633]
[1770083053305,14.84818443,103.83,103.77,3.64062633]
[1770083053699,3.79229836,103.83,103.78,8.6803]
[1770083054002,6.17148443,103.85,103.79,3.64062633]
[1770083055403,14.84608443,103.85,103.79,12.32012633]
[1770083055797,6.17148443,103.83,103.78,8.6803]
[1770083056605,14.84778443,103.83,103.77,12.32172633]
[1770083058014,6.17148443,103.83,103.78,12.32092633]
[1770083058213,3.79229836,103.83,103.78,12.32092633]
[1770083059111,6.17148443,103.83,103.78,12.32092633]
[1770083059614,6.17148443,103.83,103.78,8.6803]
[1770083059811,14.84768443,103.83,103.77,8.6811]
[1770083060716,14.84768443,103.83,103.77,12.28717751]
[1770083061117,14.84768443,103.83,103.78,8.6802]
[1770083061318,3.79229836,103.83,103.78,12.28627751]
[1770083064613,12.46859836,103.83,103.78,12.28627751]
[1770083064820,3.73609084,103.82,103.77,8.6811]
[1770083065319,3.73609084,103.82,103.77,12.28717751]
[1770083065615,3.73609084,103.84,103.79,3.60607751]
[1770083066518,8.6747,103.85,103.8,3.60607751]
[1770083066919,6.11229316,103.86,103.8,3.60607751]
[1770083067819,3.73609084,103.86,103.8,3.60607751]
[1770083068019,12.40999084,103.86,103.8,12.28417751]
[1770083070114,8.6746,103.85,103.8,3.60607751]
[1770083070322,3.73609084,103.84,103.79,8.6794]
[1770083070521,6.11229316,103.84,103.79,8.6794]
[1770083071421,3.73609084,103.86,103.8,12.28417751]
[1770083071622,3.73609084,103.86,103.81,3.60607751]
[1770083071818,6.11229316,103.88,103.81,5.98227983]
[1770083072023,14.78499316,103.88,103.81,5.98227983]
[1770083072323,6.11229316,103.88,103.81,5.98227983]
[1770083072525,6.11229316,103.88,103.82,12.28247751]
[1770083073219,3.73609084,103.9,103.84,3.60607751]
[1770083073522,2.37620232,103.91,103.85,3.60607751]
[1770083074022,14.78099316,103.92,103.86,8.6734]
[1770083074916,8.6679,103.93,103.88,3.60607751]
[1770083075116,6.11229316,103.94,103.88,3.60607751]
[1770083076325,3.73609084,103.94,103.89,3.60607751]
[1770083076624,134.7662,103.99,103.9,3.60607751]
[1770083076625,6.11229316,103.96,103.9,3.60607751]
[1770083076924,2.37620232,103.94,103.88,3.60607751]
[1770083077326,6.11229316,103.95,103.89,3.60607751]
[1770083078225,3.73609084,103.93,103.87,3.60607751]
[1770083078420,3.73609084,103.93,103.88,12.27777751]
[1770083079521,11.04330232,103.94,103.88,12.27777751]
[1770083080926,6.11229316,103.95,103.89,12.27717751]
[1770083081123,3.73609084,103.95,103.89,12.27717751]
[1770083082519,11.04190232,103.96,103.9,12.27637751]
[1770083083025,14.77799316,103.96,103.9,12.27637751]
[1770083083220,3.73609084,103.96,103.91,3.60607751]
[1770083085629,12.40159084,103.96,103.91,3.60607751]
[1770083085823,14.77779316,103.96,103.91,3.60607751]
[1770083086330,3.73609084,103.96,103.91,12.27557751]
[1770083086527,8.6645,103.97,103.91,12.27557751]
[1770083087426,8.6645,103.97,103.92,12.27477751]
[1770083087630,6.11229316,103.98,103.92,12.27477751]
[1770083087826,2.37620232,103.99,103.93,3.60607751]
[1770083089133,8.6639,103.98,103.93,12.27387751]
[1770083089328,14.77619316,103.98,103.93,12.27387751]
[1770083089832,14.77619316,103.98,103.93,3.60607751]
[1770083090030,14.77729316,103.97,103.91,3.60607751]
[1770083091434,11.04000232,103.98,103.92,3.45671321]
[1770083091737,8.6638,103.98,103.92,3.45671321]
[1770083092235,8.6638,103.98,103.92,12.12521321]
[1770083092537,14.58961286,103.98,103.92,12.12521321]
[1770083094437,11.03920232,103.99,103.93,12.12451321]
[1770083094634,14.58881286,103.99,103.93,12.12451321]
[1770083095938,14.58881286,103.99,103.94,12.12371321]
[1770083096239,8.6621,104.0,103.94,3.45671321]
[1770083096837,8.6621,104.0,103.95,8.6661]
[1770083097339,14.58791286,104.0,103.94,3.45671321]
[1770083097636,14.58791286,104.0,103.94,12.12311321]
[1770083097944,14.58791286,104.0,103.94,3.45671321]
[1770083098540,14.58791286,104.0,103.95,8.6661]
[1770083099137,11.03910232,103.99,103.94,3.45671321]
[1770083099341,14.58871286,103.99,103.94,3.45671321]
[1770083100045,5.92581286,103.99,103.94,12.12351321]
[1770083100343,11.03840232,104.0,103.94,3.45671321]
[1770083100535,5.92581286,104.01,103.94,3.45671321]
[1770083100936,5.92581286,104.01,103.96,3.45671321]
[1770083100937,3.54961054,104.01,103.96,3.45671321]
[1770083101544,2.37620232,103.99,103.94,3.45671321]
[1770083101743,2.37620232,104.01,103.95,3.45671321]
[1770083102042,5.92581286,104.01,103.95,3.45671321]
[1770083102244,14.58781286,104.01,103.95,12.12271321]
[1770083102941,5.92581286,103.99,103.94,8.6669]
[1770083103140,2.37620232,103.98,103.93,3.45671321]
[1770083104241,2.37620232,103.97,103.93,3.45671321]
[1770083104642,14.58951286,103.98,103.93,3.45671321]
[1770083106147,14.59071286,103.97,103.91,12.12611321]
[1770083106343,2.37620232,103.98,103.92,3.45671321]
[1770083106844,5.92581286,103.99,103.92,3.45671321]
[1770083107444,14.58961286,103.98,103.92,3.45671321]
[1770083108447,14.58961286,103.98,103.92,12.12521321]
[1770083110148,14.58961286,103.98,103.93,8.6678]
[1770083110550,14.58961286,103.98,103.93,12.12451321]
[1770083111748,12.21341054,103.98,103.93,12.12451321]
[1770083112845,11.03930232,103.99,103.94,12.12351321]
[1770083113050,8.6631,103.99,103.94,12.12351321]
[1770083113642,14.58961286,103.98,103.92,3.45671321]
[1770083114050,3.54961054,103.96,103.9,178.21671321]
[1770083114246,3.54961054,103.96,103.91,8.6689]
[1770083114453,2.37620232,104.01,103.94,3.45671321]
[1770083114653,2.37620232,104.01,103.95,3.45671321]
[1770083115155,8.6614,104.01,103.96,12.12201321]
[1770083115454,12.21101054,104.01,103.96,12.12201321]
[1770083115654,3.54961054,104.01,103.97,8.6644]
[1770083117758,14.58551286,104.03,103.97,12.12111321]
[1770083119350,5.92581286,104.03,103.98,12.12021321]
[1770083119556,3.54961054,104.03,103.98,12.12021321]
[1770083119857,5.92581286,104.02,103.96,3.45671321]
[1770083121163,5.92581286,104.02,103.97,8.6644]
[1770083121360,3.54961054,104.02,103.97,12.32212206]
[1770083121560,3.54961054,104.02,103.97,8.6644]
[1770083122861,12.21011054,104.02,103.97,8.6644]
[1770083124163,14.57772265,104.02,103.97,8.6644]
[1770083124465,3.54961054,104.02,103.97,12.32212206]
[1770083124667,11.02731211,104.03,103.95,2.36761211]
[1770083124668,6.02951914,104.01,103.95,3.65772206]
[1770083124964,14.69071914,104.01,103.95,3.65772206]
[1770083125261,12.32310703,104.01,103.95,3.65772206]
[1770083125964,12.32400703,104.0,103.95,3.65772206]
[1770083126166,3.66190703,103.99,103.93,3.65772206]
[1770083126363,6.02951914,103.96,103.91,3.65772206]
[1770083126873,7.55115641,103.98,103.92,12.32622206]
[1770083126874,14.69321914,103.98,103.92,12.32622206]
[1770083127260,3.66190703,103.97,103.92,12.32622206]
[1770083127664,14.69251914,103.99,103.93,12.32552206]
[1770083127872,14.69251914,103.99,103.94,3.65772206]
[1770083128069,12.32490703,103.99,103.94,3.65772206]
[1770083128364,6.02951914,103.98,103.92,3.65772206]
[1770083128766,3.66190703,103.98,103.92,3.65772206]
[1770083129166,3.66190703,103.98,103.92,6.02533417]
[1770083129467,3.66190703,103.98,103.93,8.6676]
[1770083130974,14.69331914,103.98,103.92,12.32632206]
[1770083131163,6.02951914,103.98,103.92,3.65772206]
[1770083131971,6.02951914,103.98,103.93,8.6678]
[1770083133969,14.69321914,103.98,103.93,8.6678]
[1770083134169,14.69321914,103.98,103.92,12.32632206]
[1770083134770,11.03051211,103.99,103.93,12.32552206]
[1770083134970,14.69241914,103.99,103.93,3.65772206]
[1770083135174,3.66190703,103.99,103.93,3.65772206]
[1770083136372,3.66190703,103.99,103.94,12.32472206]
[1770083136574,6.02951914,104.01,103.95,3.65772206]
[1770083137969,6.02951914,104.01,103.96,3.65772206]
[1770083137970,14.69071914,104.01,103.96,3.65772206]
[1770083138169,6.02951914,104.03,103.96,3.65772206]
[1770083138573,14.68911914,104.03,103.97,12.32222206]
[1770083138968,6.02951914,104.03,103.97,3.65772206]
[1770083140279,6.02951914,104.03,103.98,8.6636]
[1770083140979,6.02951914,104.02,103.97,3.65772206]
[1770083141776,11.02751211,104.03,103.97,3.65772206]
[1770083142076,14.68941914,104.03,103.97,3.65772206]
[1770083142275,3.66190703,104.02,103.97,3.65772206]
[1770083142574,6.02951914,104.02,103.97,3.65772206]
[1770083142978,6.02951914,104.02,103.97,12.32202206]
[1770083143178,3.66190703,104.02,103.97,12.32202206]
[1770083143379,3.66190703,104.02,103.97,3.65772206]
[1770083143582,2.36761211,104.03,103.97,3.65772206]
[1770083144372,2.36761211,104.03,103.98,8.6637]
[1770083144573,14.68831914,104.04,103.98,12.32142206]
[1770083144980,3.66190703,104.04,103.99,12.32042206]
[1770083146377,11.02561211,104.05,104.0,8.6619]
[1770083146578,14.68751914,104.05,104.0,8.6619]
[1770083147272,3.66190703,104.02,103.96,3.65772206]
[1770083147671,6.02951914,104.04,103.97,3.65772206]
[1770083147874,14.68841914,104.04,103.98,12.32072206]
[1770083149582,3.66190703,104.01,103.96,12.32242206]
[1770083150083,6.02951914,104.01,103.96,12.32242206]
[1770083150582,2.36761211,104.0,103.96,3.65772206]
[1770083152582,14.50033863,104.0,103.94,3.58889788]
[1770083152783,2.36761211,103.99,103.94,3.58889788]
[1770083152984,2.36761211,103.98,103.94,3.58889788]
[1770083153586,134.7207,104.02,103.94,3.58889788]
[1770083153587,2.36761211,104.0,103.94,3.58889788]
[1770083153788,5.83833863,104.01,103.94,3.58889788]
[1770083153988,14.49963863,104.01,103.94,3.58889788]
[1770083154887,3.47072652,104.01,103.97,8.6644]
[1770083157794,3.47072652,104.01,103.96,3.58889788]
[1770083157795,14.49953863,104.01,103.96,3.58889788]
[1770083157988,5.83833863,104.01,103.96,3.58889788]
[1770083158184,3.47072652,104.01,103.96,3.58889788]
[1770083158596,3.47072652,104.01,103.97,8.6645]
[1770083159894,5.83833863,104.01,103.96,12.25409788]
[1770083160095,5.83833863,104.01,103.96,3.58889788]
[1770083160499,5.83833863,103.99,103.94,3.58889788]
[1770083160799,5.83833863,103.98,103.92,3.58889788]
[1770083161094,5.83833863,103.96,103.91,8.6694]
[1770083161491,2.36761211,103.95,103.9,12.25909788]
[1770083161995,12.13622652,103.96,103.91,3.58889788]
[1770083161996,5.83833863,103.96,103.91,3.58889788]
[1770083162191,11.03221211,103.97,103.92,3.58889788]
[1770083162397,8.6646,103.97,103.92,3.58889788]
[1770083162697,12.13182652,104.02,103.96,3.58889788]
[1770083162891,3.47072652,104.02,103.96,3.58889788]
[1770083164398,3.47072652,104.02,103.97,8.6644]
[1770083165197,12.13112652,104.02,103.96,3.58889788]
[1770083166401,12.13112652,104.02,103.97,8.6645]
[1770083166602,12.13012652,104.04,103.98,3.58889788]
[1770083167500,12.13012652,104.04,103.98,12.25249788]
[1770083169603,12.13032652,104.03,103.98,12.25249788]
[1770083169903,496.9581,104.07,103.99,3.58889788]
[1770083169904,3.47072652,104.05,103.99,3.58889788]
[1770083170101,3.47072652,104.07,103.99,3.58889788]
[1770083170300,3.47072652,104.09,104.01,3.58889788]
[1770083171404,12.12672652,104.08,104.02,8.6603]
[1770083172206,12.12672652,104.08,104.02,12.24919788]
[1770083172995,8.6562,104.07,104.02,3.58889788]
[1770083173402,12.12692652,104.07,104.02,3.58889788]
[1770083179203,12.12692652,104.07,104.0,12.25079788]
[1770083179606,3.47072652,104.06,104.0,12.25079788]
[1770083179798,8.6562,104.07,104.02,3.58889788]
[1770083181311,3.47072652,104.08,104.02,12.24879788]
[1770083181507,3.47072652,104.08,104.03,3.67001311]
[1770083182915,3.7284137,104.07,104.02,8.6599]
[1770083183313,3.7284137,104.07,104.02,12.32991311]
[1770083183913,12.3847137,104.07,104.02,12.32991311]
[1770083184113,12.3847137,104.07,104.02,3.67001311]
[1770083188521,12.3847137,104.07,104.02,12.33021311]
[1770083188723,3.7284137,104.07,104.02,12.33021311]
[1770083189329,3.7284137,104.06,104.01,8.6611]
[1770083190127,12.3863137,104.05,104.0,3.67001311]
[1770083190621,3.7284137,104.04,104.0,3.67001311]
[1770083190825,3.7284137,104.04,103.99,8.6621]
[1770083191025,3.7284137,104.04,103.99,12.33211311]
[1770083192521,12.3871137,104.04,103.99,12.33211311]
[1770083192926,3.7284137,104.04,103.99,12.33211311]
[1770083195228,12.3872137,104.04,103.99,3.67001311]
[1770083196327,3.7284137,104.02,103.96,8.6646]
[1770083196631,3.7284137,104.02,103.96,12.33461311]
[1770083197326,12.3894137,104.02,103.97,12.33451311]
[1770083198027,12.3894137,104.02,103.97,3.67001311]
[1770083198232,8.6613,104.01,103.97,3.67001311]
[1770083198621,3.7284137,104.02,103.97,3.67001311]
[1770083199029,12.3889137,104.02,103.97,12.33451311]
[1770083199530,12.3889137,104.02,103.97,3.67001311]
[1770083202434,12.3889137,104.02,103.97,12.33431311]
[1770083203226,12.3889137,104.02,103.98,3.67001311]
[1770083203430,8.6597,104.03,103.98,3.67001311]
[1770083203633,12.3881137,104.03,103.98,3.67001311]
[1770083204432,12.3881137,104.03,103.97,8.6643]
[1770083204433,3.7284137,104.05,104.0,12.33181311]
[1770083205431,3.7284137,104.03,103.98,3.67001311]
[1770083205630,3.7284137,104.02,103.96,3.67001311]
[1770083205822,6.09468447,104.02,103.96,3.67001311]
[1770083206026,3.7284137,104.01,103.96,3.67001311]
[1770083206325,6.09468447,104.01,103.96,3.67001311]
[1770083207432,14.75588447,104.01,103.96,3.67001311]
[1770083207937,3.7284137,104.01,103.96,3.67001311]
[1770083208730,3.7284137,104.01,103.96,12.33521311]
[1770083209326,8.661,104.02,103.97,12.33451311]
[1770083209528,12.3894137,104.02,103.97,12.33451311]
[1770083209724,3.7284137,104.0,103.95,3.67001311]
[1770083209929,3.7284137,104.0,103.95,12.33601311]
[1770083211234,3.7284137,104.0,103.96,8.6652]
[1770083211841,14.45466083,104.02,103.96,12.37848154]
[1770083214436,12.08939006,104.01,103.96,12.37848154]
[1770083214932,12.08989006,104.0,103.94,189.61968154]
[1770083215135,3.42779006,103.99,103.94,189.61968154]
[1770083215335,3.42779006,103.99,103.94,12.37968154]
[1770083216236,8.6621,104.0,103.95,12.37948154]
[1770083217335,12.08989006,104.0,103.95,12.37948154]
[1770083221039,3.42779006,104.0,103.96,8.6651]
[1770083221239,3.42779006,104.02,103.96,3.71328154]
[1770083221439,3.42779006,104.02,103.97,3.71328154]
[1770083221639,8.6589,104.04,103.99,12.37598154]
[1770083222237,12.08669006,104.04,103.99,12.37598154]
[1770083222544,3.42779006,104.02,103.98,8.6635]
[1770083222742,3.42779006,104.02,103.97,3.71328154]
[1770083222743,3.42779006,104.02,103.92,134.8432]
[1770083222942,3.42779006,104.02,103.93,3.71328154]
[1770083223147,3.42779006,104.02,103.94,8.667]
[1770083223148,3.42779006,103.99,103.94,8.667]
[1770083223548,3.42779006,103.97,103.92,8.6687]
[1770083223848,3.42779006,104.0,103.92,3.71328154]
[1770083224748,3.42779006,103.98,103.93,8.6678]
[1770083226147,3.42779006,103.98,103.93,12.38108154]
[1770083226847,3.42779006,103.97,103.91,3.71328154]
[1770083227749,3.42779006,103.96,103.91,3.71328154]
[1770083230352,12.09319006,103.96,103.9,12.38348154]
[1770083233050,3.42779006,103.96,103.91,12.38278154]
[1770083234055,12.09159006,103.98,103.92,3.71328154]
[1770083234455,3.42779006,103.98,103.92,3.71328154]
[1770083234755,3.42779006,104.0,103.94,3.71328154]
[1770083236256,8.6612,104.01,103.95,12.37868154]
[1770083238150,12.08899006,104.01,103.95,12.37868154]
[1770083239054,12.08989006,104.0,103.95,12.37868154]
[1770083239257,3.42779006,103.99,103.93,190.12048154]
[1770083239559,3.42779006,103.99,103.93,12.38048154]
[1770083240352,12.09069006,103.99,103.93,12.38048154]
[1770083240954,12.09069006,103.99,103.94,8.6668]
[1770083241350,3.74512488,104.01,103.96,12.38433581]
[1770083242060,3.74512488,104.01,103.95,8.6661]
[1770083242653,3.74512488,104.01,103.95,12.38543581]
[1770083242858,12.40702488,104.01,103.95,12.38543581]
[1770083243058,3.74512488,104.01,103.95,12.38543581]
[1770083244363,12.40642488,104.01,103.95,12.38543581]
[1770083246562,12.40642488,104.01,103.96,8.6653]
[1770083249662,3.74512488,104.01,103.96,12.38463581]
[1770083250670,12.40642488,104.01,103.96,12.38463581]
[1770083251268,3.74512488,104.01,103.96,12.38463581]
[1770083251463,3.74512488,104.01,103.94,134.8201]
[1770083251464,3.74512488,104.03,103.97,3.71933581]
[1770083251661,352.02,104.04,103.97,3.71933581]
[1770083251865,3.74512488,104.05,103.97,3.71933581]
[1770083253371,12.40392488,104.04,103.99,8.6626]
[1770083254577,3.74512488,104.04,103.99,12.38193581]
[1770083255668,8.658,104.05,104.0,8.6618]
[1770083255969,12.40232488,104.06,104.0,12.38113581]
[1770083256972,12.40232488,104.06,104.01,8.661]
[1770083257374,12.40302488,104.05,104.0,12.38123581]
[1770083258578,12.40402488,104.04,103.99,8.6628]
[1770083258877,12.40402488,104.04,103.99,12.38213581]
[1770083259282,3.74512488,104.04,103.99,12.38213581]
[1770083259578,486.4538,104.07,104.0,12.38133581]
[1770083259579,3.74512488,104.06,104.0,12.38133581]
[1770083259880,12.40282488,104.06,104.0,12.38133581]
[1770083260080,3.74512488,104.05,104.0,12.38133581]
[1770083260579,12.40312488,104.05,104.0,12.38133581]
[1770083266483,14.76977949,104.05,104.0,12.38133581]
[1770083267884,14.76977949,104.05,104.0,3.71933581]
[1770083268183,12.40402488,104.04,103.99,8.6628]
[1770083268481,12.40402488,104.04,103.99,12.38213581]
[1770083269388,14.77067949,104.04,103.99,12.38213581]
[1770083269782,3.74512488,104.02,103.97,3.71933581]
[1770083269988,6.11177949,104.02,103.97,3.71933581]
[1770083270286,6.0955971,104.01,103.95,3.73645752]
[1770083270488,6.0955971,104.0,103.95,12.40255752]
[1770083271286,14.7577971,104.0,103.95,12.40255752]
[1770083271495,12.39114249,104.0,103.95,12.40255752]
[1770083271678,3.72894249,104.02,103.96,3.73645752]
[1770083273286,3.72894249,104.02,103.97,8.6645]
[1770083273785,6.0955971,104.02,103.97,8.6645]
[1770083274289,14.7561971,104.02,103.97,8.6645]
[1770083274685,14.7561971,104.02,103.97,12.40095752]
[1770083274886,12.38954249,104.02,103.97,12.40095752]
[1770083276587,3.72894249,104.02,103.97,3.73645752]
[1770083276789,3.72894249,104.04,103.99,3.73645752]
[1770083277893,3.72894249,104.04,103.99,12.39865752]
[1770083278691,6.0955971,104.06,104.01,12.39725752]
[1770083278995,3.72894249,104.06,104.01,12.39725752]
[1770083280794,6.0955971,104.06,104.01,12.39725752]
[1770083282196,3.72894249,104.06,104.01,12.39725752]